Cogmind - Beta 13 @@@ ROGUE MODE // 2024.04.13 @ 15:44:34 Player: Cracklepappy Result: Destroyed by ZK-G1I(R) with Subdweller Machine Gun Performance ------------- Evolutions (0) 0 Regions Visited (2) 400 Robots Destroyed (27) 135 Value Destroyed (716) 716 Prototype IDs (2) 40 Alien Tech Used (0) 0 Bonus (0) 0 TOTAL SCORE: 1291 Bonus ------- None Cogmind --------- Core Integrity 0/250 Matter 197/300 Energy 248/250 System Corruption 0% Temperature Cool (32) Movement Treading (240) Ox1 Location -10/Subcaves Parts ------- > --- POWER (1) -------- Ion Engine > --- PROPULSION (2) --- Light Treads Light Treads > --- UTILITY (2) ------ High-capacity Storage Unit Light Armor Plating > --- WEAPON (2) ------- Subdweller Beam Cannon Light Cannon > --- INVENTORY (20) --- Ion Engine Ion Engine Light Treads Light Treads Aluminum Leg Wheel Compact Wheel Medium Storage Unit Large Storage Unit Huge Storage Unit Visual Processing Unit Makeshift Light Armor Plating Subdweller Beam Cannon Light Assault Rifle Light Assault Rifle Subdweller Machine Gun Light Cannon Light Cannon Battle Cannon Mining Laser Peak State ------------ > --- POWER ------------ Ion Engine > --- PROPULSION ------- Light Treads Light Treads > --- UTILITY ---------- High-capacity Storage Unit Light Armor Plating > --- WEAPON ----------- Subdweller Machine Gun Light Cannon > --- INVENTORY -------- Ion Engine Ion Engine Light Treads Light Treads Aluminum Leg Wheel Compact Wheel Medium Storage Unit Large Storage Unit Huge Storage Unit Visual Processing Unit Makeshift Light Armor Plating EM Pulse Gun Medium Laser Light Assault Rifle Light Assault Rifle Light Cannon Light Cannon Battle Cannon Mining Laser [Rating: 10] Favorites ----------- Power Ion Engine Engine Ion Engine Propulsion Light Treads Treads Light Treads Wheel Wheel Utility High-capacity Storage Unit Device Heat Sink Storage High-capacity Storage Unit Protection Light Armor Plating Weapon Light Cannon Energy Gun Small Laser Energy Cannon Subdweller Beam Cannon Ballistic Gun Light Assault Rifle Ballistic Cannon Light Cannon Build | -11 -10 -10 ------- Run | Yrd Mat Sub Slots Evolved . | . . . Power . | . . . Propulsion . | . . . Utility . | . . . Weapon . | . . . Parts Attached 22 | 6 13 3 Power 2 | . 2 . Engine 2 | . 2 . Core . | . . . Reactor . | . . . Propulsion 5 | 3 1 1 Treads 4 | 2 1 1 Leg . | . . . Wheel 1 | 1 . . Hover . | . . . Flight . | . . . Utility 4 | 1 3 . Device 1 | . 1 . Storage 2 | 1 1 . Processor . | . . . Hackware . | . . . Protection 1 | . 1 . Artifact . | . . . Weapon 11 | 2 7 2 Energy Gun 1 | 1 . . Energy Cannon 1 | . . 1 Ballistic Gun 5 | 1 3 1 Ballistic Cannon 4 | . 4 . Launcher . | . . . Special Weapon . | . . . Impact Weapon . | . . . Slashing Weapon . | . . . Piercing Weapon . | . . . Special Melee Weapon . | . . . Unidentified Prototypes . | . . . Parts Lost 1 | . . 1 Power . | . . . Propulsion 1 | . . 1 Utility . | . . . Weapon . | . . . Highest Loss Streak 1 | . . 1 To Critical Strikes 1 | . . 1 Average Slot Usage (%) 90 | . 86 100 Engine 8 | . 6 14 Treads 27 | . 27 28 Device 3 | . 4 . Storage 14 | . 14 14 Protection 7 | . 4 14 Ballistic Gun 12 | . 15 5 Ballistic Cannon 13 | . 11 20 Naked Turns . | . . . Heaviest Build 59 | 7 54 59 Greatest Support 40 | 40 40 40 Greatest Overweight (x) 1 | . 1 1 Average Overweight (x) . | . . 1 Largest Inventory Capacity 20 | 8 20 20 Average Capacity 19 | 7 19 20 Most Carried 20 | 8 20 20 Average Carried 16 | 4 15 19 Final Capacity 20 | 8 20 20 Final Carried 20 | 7 20 20 Class Distribution -------------------- 100% | Mutant Dominant Class ---------------- Mutant | -10/Materials Mutant | -10/Subcaves Resources | -11 -10 -10 ----------- Run | Yrd Mat Sub Matter Collected 648 | 217 375 56 Remotely . | . . . Salvage Created 910 | . 796 114 Parts 49 | . 43 6 Haulers Intercepted 2 | . 2 . Recyclers Shooed 1 | . 1 . Parts Field Recycled . | . . . Retrieved Matter . | . . . Parts Self-Destructed 8 | . . 8 Prevented . | . . . Kills | -11 -10 -10 ------- Run | Yrd Mat Sub Combat Hostiles Destroyed 20 | . 16 4 Guns 8 | . 8 . Cannons 11 | . 8 3 Classes Destroyed 7 | . 6 1 Hauler 2 | . 2 . Recycler 2 | . 2 . Operator 1 | . 1 . Watcher 2 | . 2 . Swarmer 3 | . 3 . Grunt 14 | . 13 1 Subdweller 3 | . . 3 Best Kill Streak 4 | . 4 2 Combat Bots Only 3 | . 3 2 Max Kills in Single Turn 1 | . 1 1 Gunslinging . | . . . Exploded . | . . . Melee . | . . . Uniques/NPCs Destroyed . | . . . Combat | -11 -10 -10 -------- Run | Yrd Mat Sub Hostile Shots Fired 72 | . 48 24 Missed 15 | . 7 8 Damage Taken 876 | . 481 395 Core 251 | . 90 161 Absorbed by Shields . | . . . Regen/Repaired (Parts) 117 | . 117 . Core Remaining (%) 100 | 100 . . Volleys Fired 86 | . 66 20 Largest 2 | . 2 2 Hottest 115 | . 70 115 Shots Fired 172 | . 132 40 Gun 100 | . 100 . Cannon 72 | . 32 40 Launcher . | . . . Special . | . . . Kinetic 155 | . 126 29 Thermal 17 | . 6 11 Explosive . | . . . Electromagnetic . | . . . Robot Hit Streak 11 | . 11 10 Robot Miss Streak 4 | . 4 2 Penetration Max . | . . . Secondary Targets 1 | . 1 . Max Gunslinging Chain 1 | . 1 . Shots Hit Robots 121 | . 91 30 Core Hits 48 | . 41 7 Critical Kills 1 | . . 1 Critical Parts Destroyed 1 | . 1 . Critical Strikes 3 | . 2 1 Meltdown 1 | . . 1 Destroy 1 | . 1 . Blast 1 | . 1 . Melee Attacks . | . . . Impact . | . . . Slashing . | . . . Piercing . | . . . Sneak Attacks . | . . . Combat Hostiles . | . . . Follow-up Attacks . | . . . Damage Inflicted 1606 | . 994 612 Guns 563 | . 563 . Cannons 1036 | . 424 612 Explosions . | . . . Melee . | . . . Ramming 7 | . 7 . Kinetic 1321 | . 954 367 Thermal 278 | . 33 245 Explosive . | . . . Electromagnetic . | . . . Impact . | . . . Slashing . | . . . Piercing . | . . . Highest Corruption . | . . . Average Corruption . | . . . Corruption Purged . | . . . Corruption Blocked . | . . . Overload Shots . | . . . Overflow Damage 7 | . 7 . Projectiles 7 | . 7 . Explosions . | . . . Melee . | . . . Knockbacks 7 | . . 7 Impact . | . . . Kinetic 7 | . . 7 Secondary . | . . . Self-Inflicted Damage . | . . . Shots . | . . . Rammed 2 | . 2 . Targets Rammed 2 | . 2 . Kicked . | . . . Crushed . | . . . Highest Temperature 174 | . 174 32 Average Temperature 35 | . 42 16 Received Heat Transfer 228 | . 228 . Siege Activations . | . . . Robots Corrupted . | . . . Combat Hostiles . | . . . Parts Fried . | . . . Impact Corruptions . | . . . Robots Melted 1 | . . 1 Combat Hostiles 1 | . . 1 Parts Melted 1 | . . 1 Heat Transferred 408 | . 75 333 Parts Sabotaged . | . . . Parts Stolen . | . . . Parts Stripped . | . . . Power Chain Reactions . | . . . Alert | -11 -10 -10 ------- Run | Yrd Mat Sub Peak Influence 256 | . 256 . Initial . | . . . Average 104 | . 108 . Maximum Alert Level 1 | . 1 . Low Security (%) 95 | 100 95 . Level 1 4 | . 4 . Level 2 . | . . . Level 3 . | . . . Level 4 . | . . . Level 5 . | . . . High Security . | . . . Max Security . | . . . Squads Dispatched 4 | . 4 . Investigation 4 | . 4 . Extermination . | . . . Reinforcement . | . . . Assault . | . . . Garrison . | . . . Intercept . | . . . Searches Triggered . | . . . Construction Impeded . | . . . Haulers Reinforced . | . . . Active Scanning Responses . | . . . Cargo Convoy Interrupts . | . . . Stealth | -11 -10 -10 --------- Run | Yrd Mat Sub Distress Signals 2 | . 2 . Communications Jammed . | . . . Distress Signals . | . . . Times Spotted 34 | . 28 6 Peak Tracking Total 3 | . 3 2 Tactical Retreats 1 | . 1 . Traps | -11 -10 -10 ------- Run | Yrd Mat Sub Traps Triggered 2 | . 2 . Indirectly . | . . . Trap Hack Attempts . | . . . Triggered . | . . . Disarmed . | . . . Reprogrammed . | . . . Reused . | . . . Traps Extracted . | . . . Installed . | . . . Triggered . | . . . Machines | -11 -10 -10 ---------- Run | Yrd Mat Sub Machines Disabled . | . . . Max in Single Turn . | . . . Machines Repaired . | . . . Machines Dismantled . | . . . Machines Sabotaged . | . . . Overloaded Fab Kills . | . . . Hacking | -11 -10 -10 --------- Run | Yrd Mat Sub Machines Accessed 9 | . 8 1 Terminals 5 | . 5 . Fabricators . | . . . Repair Stations 1 | . 1 . Recycling Units 2 | . 2 . Scanalyzers . | . . . Garrison Access . | . . . Total Hacks 28 | . 26 2 Successful 13 | . 11 2 Failed 15 | . 15 . Catastrophic 4 | . 4 . Database Lockouts . | . . . Manual 14 | . 14 . Terminals 15 | . 15 . Fabricators . | . . . Repair Stations 4 | . 4 . Recycling Units 7 | . 7 . Scanalyzers . | . . . Garrison Access . | . . . Terminal Hacks 9 | . 7 2 Record 2 | . . 2 Part Schematic 2 | . 2 . Robot Analysis 2 | . 2 . Prototype ID Bank 1 | . 1 . Hauler Manifests 1 | . 1 . Zone Layout 1 | . 1 . Fabricator Hacks . | . . . Repair Station Hacks 2 | . 2 . Scan Component 1 | . 1 . Repair 1 | . 1 . Recycling Unit Hacks . | . . . Scanalyzer . | . . . Garrison Access Hacks . | . . . Unauthorized Hacks 2 | . 2 . Terminals . | . . . Fabricators . | . . . Repair Stations . | . . . Recycling Units 2 | . 2 . Tunnel 2 | . 2 . Scanalyzers . | . . . Garrison Access . | . . . Data Cores Recovered 1 | . 1 . Used . | . . . Hacking Detections 7 | . 7 . Full Trace Events 1 | . 1 . Feedback Events . | . . . Feedback Blocked . | . . . Robot Schematics Acquired . | . . . Robots Built . | . . . Authchips . | . . . Time . | . . . Total Robot Build Rating . | . . . Part Schematics Acquired 2 | . 2 . Parts Built . | . . . Authchips . | . . . Time . | . . . Total Part Build Rating . | . . . Parts Repaired 1 | . 1 . Time 13 | . 13 . Parts Recycled . | . . . Recycled Matter . | . . . Retrieved Matter . | . . . Retrieved Components . | . . . Parts Scanalyzed . | . . . Part Schematics Acquired . | . . . Parts Damaged . | . . . Bothacking | -11 -10 -10 ------------ Run | Yrd Mat Sub Used RIF Installer . | . . . Robots Hacked . | . . . Non-combat . | . . . Combat . | . . . Robot Hacks Applied . | . . . Relay Couplers Released . | . . . Fabnet Peak Effective % . | . . . Robots Rewired . | . . . Allies Hacked . | . . . Hacks Repelled . | . . . Allies | -11 -10 -10 -------- Run | Yrd Mat Sub Total Allies . | . . . Largest Group . | . . . Highest-Rated Group . | . . . Highest-Rated Ally . | . . . Total Orders . | . . . Ally Attacks . | . . . Total Damage . | . . . Kills . | . . . Allies Corrupted . | . . . Allies Melted . | . . . Intel | -11 -10 -10 ------- Run | Yrd Mat Sub Robot Analysis Total 2 | . 2 . Derelict Logs Recovered 2 | . . 2 Drone Launches . | . . . Drone Recoveries . | . . . Exploration | -11 -10 -10 ------------- Run | Yrd Mat Sub Turns Passed 2702 | 69 1926 707 Spaces Moved 985 | 45 676 264 Core 1 | 1 . . Treads 962 | 22 676 264 Legs . | . . . Wheels 22 | 22 . . Hover . | . . . Flight . | . . . Fastest Speed 50 | 50 160 240 Average Speed 229 | 118 233 240 Slowest Speed 240 | 160 240 240 Overloaded Moves . | . . . Propulsion Burnouts . | . . . Robots Hopped . | . . . Cave-ins Triggered . | . . . Exploration Rate (%) 38 | 3 98 15 Regions Visited 2 Branch Regions 1 Pre-discovered Areas 3 | . 2 1 Known Exits Taken . | . . . Unknown Exits Taken 2 | 1 1 . Scrap Searched . | . . . Spaces Dug . | . . . Terrain Destroyed . | . . . Melee . | . . . Projectile . | . . . AOE . | . . . Terrain Rammed . | . . . Walls Destroyed . | . . . Machines Disabled . | . . . Actions | -11 -10 -10 --------- Run | Yrd Mat Sub Total 1268 | 59 910 299 Wait 127 | . 126 1 Move 983 | 44 675 264 Hop . | . . . Pick Up 34 | 9 19 6 Fast Attach 7 | 3 4 . Attach 4 | 2 1 1 Detach 1 | . 1 . Swap 11 | 1 8 2 Drop 13 | . 8 5 Fire 86 | . 66 20 Melee . | . . . Ram . | . . . Kick . | . . . Crush 2 | . 2 . Escape Stasis . | . . . Rewire . | . . . Trap . | . . . Miscellaneous . | . . . Route ------- -11/Scrapyard -10/Materials (discovered 6 exits: [*Mat x3] / [*Min x2] / *Sub) -10/Subcaves (discovered 1 exit: [*Mat]) History --------- Turn | Location | Event 34 | -11/Scrapyard | Discovered new exit (range 15) 70 | -11/Scrapyard | Entered Materials 318 | -10/Materials | Build established: Mutant 451 | -10/Materials | Discovered new exit (range 16) 1025 | -10/Materials | Discovered new exit (range 3) 1247 | -10/Materials | Discovered new exit (range 11) 1529 | -10/Materials | Discovered new exit (range 9) 1623 | -10/Materials | Repaired Lgt. Treads 1821 | -10/Materials | Discovered new exit (range 11) 1982 | -10/Materials | Discovered new exit (range 6) 1996 | -10/Materials | Entered Subcaves 2001 | -10/Subcaves | Learned Materials emergency access door positions 2052 | -10/Subcaves | Learned 2 Materials zone layouts 2183 | -10/Subcaves | Learned location of Zion (-6) 2183 | -10/Subcaves | Met a Zionite searching for "candidates" 2226 | -10/Subcaves | Discovered new exit (range 5) 2228 | -10/Subcaves | Visited Clippyterm 2676 | -10/Subcaves | Core integrity fell below 50% 2685 | -10/Subcaves | Ambushed by Subdweller buried in earth 2686 | -10/Subcaves | Core integrity fell below 20% 2703 | -10/Subcaves | Destroyed by ZK-G1I(R) with Subdweller Machine Gun Last Messages --------------- 02532_ Acquired Sub. Beam Cannon. 02563_ Dropped Lgt. Assault Rifle. 02564_ Acquired Sub. Beam Cannon. 02565_ Dropped Med. Laser. 02567_ Subatomizers dissect the Lgt. Assault Rifle. 02568_ Acquired Lgt. Assault Rifle. 02622_ Acquired 14 matter. 02671_ VF-9C0(R) knocked back. 02680_ VF-9C0(R) suffers critical hit (Meltdown). 02680_ Sub. Power Source melted. 02683_ 6A-S1Y(R) knocked back. 02685_ Subatomizers dissect the Disposable Heat Sink. 02685_ 6A-S1Y(R) destroyed. 02686_ ZK-G1I(R): "ARGHSUB!" 02692_ ZK-G1I(R) knocked back. 02694_ ZK-G1I(R) affixes Scrap Shield Fragment to Scrap Shield. 02695_ ZK-G1I(R) knocked back. 02697_ Subatomizers dissect the Disposable Heat Sink. 02701_ ZK-G1I(R) affixes Scrap Shield Fragment to Scrap Shield. Map ----- +----------------------------------------------------+ | ???????????## !|###### ####?????????????????????? | | ????????????## &##??????#????????????????????????? | | ???????????###" *##??????????????????????????????? | | ???????????# "!=" ##?????????????????????????????? | | ???????????##" "" #?????????????????????????????? | | ????????????#"" "##?????????????????????????????? | | ????????????# " "" #?????????????????????????????? | | ????????????#"" " ##?????????????????????????????? | | ????????????## "##??????????????????????????????? | | ?????????????# #???????????????????????????????? | | ?????????????# #???????????????????????????????? | | ?????????????# #???????????????????????????????? | | ?????????????## ##???????????????????????????????? | | ??????????????# #???????????????????????????????? | | ??????????????# ##??????????????????????????????? | | ????????????### #??????????????????????????????? | | ???????????## ##?????????????????????????????? | | ???????????# #????###??????????????????????? | | ???????????## ;????# ##?????????????????????? | | ????????????###; ;#???# ##????????????????????? | | ?????????????##; ;;####"" ###??????????????????? | | ?????????????# ;; ;;; ;###????????????????? | | ??????????????# ;; ""#????????????????? | | ??????????????# ;; #????????????????? | | ??????????????????#; ] " ##???????????????? | | ???????????????????## ;;@ % "" ????????????? | | ????????????????????###;;;&!R ???????????? | | ??????????????????????# ;%% & #???????????? | | ??????????????????????####" %% #???????????? | | ?????????????????????????""&! #??????????? | | ?????????????????????????" ## #??????????? | | ????????????????????????? #?# ###??????????? | | ????????????????????????? #??# ##????????????? | | ????????????????????????? #??? ##?????????????? | | ????????????????????????? #???? #??????????????? | | ??????????????????????????? #?????#??????????????? | | ??????????????????????????? ?????????????????????? | | ?????????????????????????????????????????????????? | | ?????????????????????????????????????????????????? | | ?????????????????????????????????????????????????? | | ?????????????????????????????????????????????????? | | ?????????????????????????????????????????????????? | | ?????????????????????????????????????????????????? | | ?????????????????????????????????????????????????? | | ?????????????????????????????????????????????????? | | ?????????????????????????????????????????????????? | | ?????????????????????????????????????????????????? | | ?????????????????????????????????????????????????? | | ?????????????????????????????????????????????????? | | ?????????????????????????????????????????????????? | +----------------------------------------------------+ Best States ------------- Heat Dissipation 35 Energy Generation 10 Energy Capacity 250 Matter Stores 300 Matter Capacity 300 Sight Range 16 Terrain Scan Density 10 Armor Coverage 150 Evasion (%) 44 Recoil Reduction 2 Item Schematics ----------------- Huge Storage Unit | -10/Materials | Hacked Cargo Storage Unit | -10/Materials | Hacked Robot Schematics ------------------ None Fabricated ------------ Nothing Alien Tech Used ----------------- None Achievements -------------- None Challenges ------------ None Game ------ Seed TimingAluminumMaul Manual? 0 Play Time 00:19:17 Cumulative 583.7 hours Start 2024.04.12 @ 18:47:48 End 2024.04.13 @ 15:44:34 Sessions 13 Manual Loads 0 Difficulty Rogue Special Mode None Game No. 397 Rogue 397 Adventurer 0 Explorer 0 Win Type - Total 18 Types 9/3/2/0/0/1/2/1/0 Lore% 82 Gallery% 90 Achievement% 80 Wizard Run 0 Options --------- Layout 0 ASCII 0 Keyboard 0 Movement Numpad Keybinds 0 Fullscreen 2 Font 24/Smallcaps Map View 76x50 Zoom Use 0% Tactical HUD 1 Map Filters NONE Filters NONE Steam 1 RUN: 9a158285-5865-4c61-a061-4eed2dc5fd6b